fUSD/lending_fUSD_20250826
["ID","MTS","AMOUNT","RATE_DAILY","PERIOD"]
[381435369,1756197046197,-5330.80651826,0.0002192,4]
[381435370,1756197046206,-5330.80651826,0.0002192,4]
[381435371,1756197046216,-5330.80651826,0.0002192,4]
[381435372,1756197046225,-5330.80651826,0.0002192,4]
[381435373,1756197046234,-5330.80651826,0.0002192,4]
[381435374,1756197046244,-5330.80651826,0.0002192,4]
[381435375,1756197046254,-5330.80651826,0.0002192,4]
[381435376,1756197046265,-5330.80651826,0.0002192,4]
[381435377,1756197046275,-5330.80651826,0.0002192,4]
[381435378,1756197046284,-5330.80651826,0.0002192,4]
[381435379,1756197046294,-5330.80651826,0.0002192,4]
[381435380,1756197046305,-5330.80651826,0.0002192,4]
[381435381,1756197046314,-5330.80651826,0.0002192,4]
[381435382,1756197046323,-5330.8,0.0002192,4]
[381435383,1756197046333,-1579.49496162,0.0002192,4]
[381435384,1756197046342,-1579.49496162,0.0002192,4]
[381435385,1756197046351,-1579.49496162,0.0002192,4]
[381435386,1756197046361,-1579.49496162,0.0002192,4]
[381435387,1756197046370,-1579.49496162,0.0002192,4]
[381435388,1756197046379,-1579.49496162,0.0002192,4]
[381435389,1756197046389,-1579.49496162,0.0002192,4]
[381435390,1756197046399,-1579.49496162,0.0002192,4]
[381435391,1756197046408,-1579.49496162,0.0002192,4]
[381435392,1756197046418,-1579.49496162,0.0002192,4]
[381435393,1756197046427,-1579.49496162,0.0002192,4]
[381435394,1756197046436,-151.0,0.0002192,7]
[381435395,1756197046445,-1579.49496162,0.0002192,4]
[381435396,1756197046454,-1579.49496162,0.0002192,4]
[381435397,1756197046464,-1579.49496162,0.0002192,4]
[381435398,1756197046473,-151.0,0.0002192,7]
[381435399,1756197046482,-151.0,0.0002192,7]
[381435400,1756197046492,-1579.49496162,0.0002192,4]
[381435401,1756197046501,-1579.49496162,0.0002192,4]
[381435402,1756197046511,-1579.49496162,0.0002192,4]
[381435403,1756197046520,-1579.49496162,0.0002192,4]
[381435404,1756197046529,-151.0,0.0002192,7]
[381435405,1756197046538,-1579.49496162,0.0002192,4]
[381435406,1756197046547,-1579.49,0.0002192,4]
[381435407,1756197046559,-3685.48824378,0.0002192,4]
[381435408,1756197046568,-151.0,0.0002192,7]
[381435409,1756197046579,-151.0,0.0002192,7]
[381435410,1756197046592,-3685.48824378,0.0002192,4]
[381435411,1756197046601,-3685.48824378,0.0002192,4]
[381435412,1756197046610,-3685.48824378,0.0002192,4]
[381435413,1756197046619,-151.0,0.0002192,7]
[381435414,1756197046629,-3685.48824378,0.0002192,4]
[381435415,1756197046638,-3685.48824378,0.0002192,4]
[381435416,1756197046647,-151.0,0.0002192,7]
[381435417,1756197046656,-3685.48824378,0.0002192,4]
[381435418,1756197046666,-3685.48824378,0.0002192,4]
[381435419,1756197046675,-3685.48824378,0.0002192,4]
[381435420,1756197046684,-3685.48824378,0.0002192,4]
[381435421,1756197046693,-3685.48824378,0.0002192,4]
[381435422,1756197046703,-3685.48824378,0.0002192,4]
[381435423,1756197046712,-3685.48824378,0.0002192,4]
[381435424,1756197046721,-3685.48824378,0.0002192,4]
[381435425,1756197046730,-3685.48824378,0.0002192,4]
[381435426,1756197046740,-151.0,0.0002192,7]
[381435427,1756197046750,-3685.48824378,0.0002192,4]
[381435428,1756197046759,-151.0,0.0002192,7]
[381435429,1756197046768,-3685.48824378,0.0002192,4]
[381435430,1756197046778,-3685.48824378,0.0002192,4]
[381435431,1756197046787,-3685.48824378,0.0002192,4]
[381435432,1756197046797,-151.0,0.0002192,7]
[381435433,1756197046808,-3685.48,0.0002192,4]
[381435434,1756197046817,-153.687016,0.0002192,7]
[381435435,1756197046826,-151.0,0.0002192,7]
[381435436,1756197046836,-151.0,0.0002192,7]
[381435437,1756197046845,-151.0,0.0002192,7]
[381435438,1756197046855,-198.945038,0.0002192,7]
[381435439,1756197046864,-151.0,0.0002192,7]
[381435440,1756197046874,-372.719028,0.0002192,7]
[381435441,1756197046883,-372.719028,0.0002192,7]
[381435442,1756197046893,-151.0,0.0002192,7]
[381435443,1756197046902,-151.0,0.0002192,7]
[381435444,1756197046911,-151.0,0.0002192,7]
[381435445,1756197046920,-372.719028,0.0002192,7]
[381435446,1756197046930,-214.674022,0.0002192,7]
[381435447,1756197046939,-151.0,0.0002192,7]
[381435448,1756197046949,-372.719028,0.0002192,7]
[381435449,1756197046958,-151.0,0.0002192,7]
[381435450,1756197046968,-619.559227,0.0002192,7]
[381435451,1756197046977,-151.0,0.0002192,7]
[381435452,1756197046987,-619.559227,0.0002192,7]
[381435453,1756197047119,-151.0,0.0002192,7]
[381435454,1756197047142,-151.0,0.0002192,7]
[381435455,1756197047152,-619.559227,0.0002192,7]
[381435456,1756197047162,-151.0,0.0002192,7]
[381435457,1756197047171,-619.559227,0.0002192,7]
[381435458,1756197047180,-151.0,0.0002192,7]
[381435459,1756197047190,-179.32,0.0002199,2]
[381435460,1756197047199,-15650.38701108,0.0002199,2]
[381435461,1756197047209,-160.0,0.00022,2]
[381435462,1756197047219,-35145.8,0.00022,2]
[381435463,1756197047228,-212.18043798,0.00022,7]
[381435464,1756197047237,-361090.07297101,0.00022,4]
[381435465,1756197047248,-458.7662338,0.00022,7]
[381435466,1756197047258,-4062.40268937,0.00022,2]
[381435467,1756197047268,-160.97,0.00022,2]
[381435468,1756197047277,-715.37,0.00022,7]
[381435469,1756197047287,-2047.31,0.00022,7]
[381435470,1756197047297,-42977.78,0.00022,7]
[381435471,1756197047307,-4000.0,0.00022,4]
[381435472,1756197047317,-484.4152107,0.000221,2]
[381435473,1756197047327,-235.4057461,0.0002211,2]
[381435474,1756197047336,-600.0,0.00022164,2]
[381435475,1756197047346,-491.80451806,0.00022275,2]
[381435476,1756197047356,-315.97945382,0.0002232,2]
[381435477,1756197047366,-322.6107,0.0002232,2]
[381435478,1756197047375,-1000.0,0.0002232,2]
[381435479,1756197047385,-1000.0,0.0002232,2]
[381435480,1756197047394,-300.0,0.0002232,2]
[381435481,1756197047404,-300.0,0.0002232,2]
[381435482,1756197047414,-300.0,0.0002232,2]
[381435483,1756197047423,-257.91778498,0.0002232,2]
[381435484,1756197047433,-180.12839204,0.00022342,2]
[381435485,1756197047443,-3507.81218677,0.00022356,2]
[381435486,1756197047453,-168.98,0.00022377,2]
[381435487,1756197047463,-1900.0,0.00022462,2]
[381435488,1756197047472,-456.75611087,0.00022497,2]
[381435489,1756197047482,-33334.91173094,0.000225,2]
[381435490,1756197047492,-599.0,0.00022529,2]
[381435491,1756197047501,-1658.0,0.00022529,2]
[381435492,1756197047510,-566.0,0.00022529,2]
[381435493,1756197047520,-1298.0,0.00022529,2]
[381435494,1756197047529,-1173.0,0.00022529,2]
[381435495,1756197047540,-895.0,0.00022529,2]
[381435496,1756197047549,-6146.0,0.00022529,2]
[381435497,1756197047559,-2031.0,0.00022529,2]
[381435498,1756197047568,-1256.0,0.00022529,2]
[381435499,1756197047585,-926.0,0.00022529,2]
[381435500,1756197047595,-4155.0,0.00022529,2]
[381435501,1756197047604,-512.28848926,0.0002271,2]
[381435502,1756197047614,-600.0,0.00022712,2]
[381435503,1756197047624,-319.0,0.0002274,2]
[381435504,1756197047634,-300.0,0.00022799,2]
[381435505,1756197047644,-184503.12895184,0.000228,7]
[381435506,1756197047655,-458.7662338,0.000228,7]
[381435507,1756197047667,-151.0,0.000228,7]
[381435508,1756197047676,-151.0,0.000228,7]
[381435509,1756197047686,-152.267444,0.000228,7]
[381435510,1756197047695,-153.764942,0.000228,7]
[381435511,1756197047705,-239.474554,0.000228,7]
[381435512,1756197047715,-239.474554,0.000228,7]
[381435513,1756197047724,-239.474554,0.000228,7]
[381435514,1756197047734,-239.474554,0.000228,7]
[381435515,1756197047744,-179.573856,0.000228,7]
[381435516,1756197047753,-151.0,0.000228,7]
[381435517,1756197047766,-179.573856,0.000228,7]
[381435518,1756197047775,-151.0,0.000228,7]
[381435519,1756197047786,-460.016274,0.000228,7]
[381435520,1756197047795,-151.713205,0.000228,7]
[381435521,1756197047807,-151.0,0.000228,7]
[381435522,1756197047816,-179.573856,0.000228,7]
[381435523,1756197047825,-151.0,0.000228,7]
[381435524,1756197047835,-151.0,0.000228,7]
[381435525,1756197047845,-460.016274,0.000228,7]
[381435526,1756197047854,-151.0,0.000228,7]
[381435527,1756197047864,-151.0,0.000228,7]
[381435528,1756197047874,-179.573856,0.000228,7]
[381435529,1756197047883,-460.016274,0.000228,7]
[381435530,1756197047894,-151.0,0.000228,7]
[381435531,1756197047903,-300.88323,0.000228,7]
[381435532,1756197047913,-460.016274,0.000228,7]
[381435533,1756197047922,-151.0,0.000228,7]
[381435534,1756197047931,-151.309327,0.000228,7]
[381435535,1756197047940,-151.0,0.000228,7]
[381435536,1756197047950,-151.0,0.000228,7]
[381435537,1756197047960,-151.0,0.000228,7]
[381435538,1756197047969,-151.0,0.000228,7]
[381435539,1756197047979,-1774.242245,0.000228,7]
[381435540,1756197047988,-151.0,0.000228,7]
[381435541,1756197047997,-304.14737,0.000228,7]
[381435542,1756197048007,-151.0,0.000228,7]
[381435543,1756197048016,-1774.242245,0.000228,7]
[381435544,1756197048026,-164.814542,0.000228,7]
[381435545,1756197048036,-151.0,0.000228,7]
[381435546,1756197048045,-151.0,0.000228,7]
[381435547,1756197048056,-1774.242245,0.000228,7]
[381435548,1756197048066,-304.14737,0.000228,7]
[381435549,1756197048075,-323.877022,0.000228,7]
[381435550,1756197048085,-151.0,0.000228,7]
[381435551,1756197048096,-235.271444,0.000228,7]
[381435552,1756197048106,-187.5147,0.000228,7]
[381435553,1756197048118,-304.14737,0.000228,7]
[381435554,1756197048128,-1774.242245,0.000228,7]
[381435555,1756197048138,-323.877022,0.000228,7]
[381435556,1756197048148,-304.14737,0.000228,7]
[381435557,1756197048158,-323.877022,0.000228,7]
[381435558,1756197048167,-187.5147,0.000228,7]
[381435559,1756197048178,-323.877022,0.000228,7]
[381435560,1756197048189,-151.0,0.000228,7]
[381435561,1756197048199,-293.876933,0.000228,7]
[381435562,1756197048209,-187.5147,0.000228,7]
[381435563,1756197048220,-293.876933,0.000228,7]
[381435564,1756197048229,-187.5147,0.000228,7]
[381435565,1756197048240,-293.876933,0.000228,7]
[381435566,1756197048250,-293.876933,0.000228,7]
[381435567,1756197048260,-151.0,0.000228,7]
[381435568,1756197048270,-194.557096,0.000228,7]
[381435569,1756197048280,-194.557096,0.000228,7]
[381435570,1756197048289,-194.557096,0.000228,7]
[381435571,1756197048299,-194.557096,0.000228,7]
[381435572,1756197048311,-892.0,0.00022848,3]
[381435573,1756197048321,-500.0,0.0002297,2]
[381435574,1756197048330,-500.0,0.0002297,2]
[381435575,1756197048340,-1000.0,0.0002297,2]
[381435576,1756197048351,-1000.0,0.0002297,2]
[381435577,1756197048360,-900.0,0.00023,8]
[381435578,1756197048370,-900.0,0.00023,8]
[381435579,1756197048380,-900.0,0.00023,8]
[381435580,1756197048390,-900.0,0.00023,8]
[381435581,1756197048399,-900.0,0.00023,8]
[381435582,1756197048409,-900.0,0.00023,8]
[381435583,1756197048418,-900.0,0.00023,8]
[381435584,1756197048427,-900.0,0.00023,8]
[381435585,1756197048437,-620.4602314,0.00023,7]
[381435586,1756197048446,-430.65974541,0.00023,2]
[381435587,1756197048456,-165.0,0.00023,5]
[381435588,1756197048465,-4000.0,0.00023,4]
[381435589,1756197048475,-187.98781697,0.000231,2]
[381435590,1756197048485,-715.37,0.000231,7]
[381435591,1756197048495,-2047.31,0.000231,7]
[381435592,1756197048504,-42977.78,0.000231,7]
[381435593,1756197048514,-51080.18220673,0.000232,2]
[381435594,1756197048523,-600.0,0.0002326,2]
[381435595,1756197048533,-150.0,0.00023288,2]
[381435596,1756197048543,-35145.8,0.000233,2]
[381435597,1756197048555,-491.80451806,0.00023376,2]
[381435598,1756197048565,-34589.844,0.00023462,2]
[381435599,1756197048576,-200.0,0.000235,2]
[381435600,1756197048587,-1900.0,0.00023558,2]
[381435601,1756197048596,-500.0,0.00023562,2]
[381435602,1756197048605,-500.0,0.00023562,2]
[381435603,1756197048615,-504.0,0.00023562,2]
[381435604,1756197048626,-319.0,0.0002357,2]
[381435605,1756197048635,-334.5472959,0.00023689,2]
[381435606,1756197048645,-267.46074303,0.00023689,2]
[381435607,1756197048655,-11783.60581465,0.00023748,3]
[381435608,1756197048666,-600.0,0.00023808,2]
[381435609,1756197048676,-151.0,0.00023836,2]
[381435610,1756197048685,-308.95,0.00024,2]
[381435611,1756197048695,-60617.92681678,0.00024,2]
[381435612,1756197048704,-998.9858853,0.00024,2]
[381435613,1756197048714,-844.63891918,0.00024,7]
[381435614,1756197048723,-5000.00818459,0.00024,5]
[381435615,1756197048733,-1489.68678308,0.00024,2]
[381435616,1756197048743,-50412.45691981,0.00024,2]
[381435617,1756197048752,-265.00157855,0.00024,2]
[381435618,1756197048776,-160.0,0.00024,7]
[381435619,1756197048786,-844.63891918,0.00024,3]
[381435620,1756197048795,-17957.0,0.00024,2]
[381435621,1756197048808,-4000.0,0.00024,4]
[381435622,1756197048819,-5273.74978043,0.000241,2]
[381435623,1756197048828,-715.37,0.000241,7]
[381435624,1756197048838,-2047.31,0.000241,7]
[381435625,1756197048848,-42977.78,0.000241,7]
[381435626,1756197048856,-153.0,0.00024111,2]
[381435627,1756197048866,-153.0,0.0002412,2]
[381435628,1756197048876,-153.0,0.0002412,2]
[381435629,1756197048885,-153.0,0.0002412,2]
[381435630,1756197048895,-153.0,0.0002412,2]
[381435631,1756197048905,-153.0,0.00024121,2]
[381435632,1756197048914,-412.94873428,0.0002421,2]
[381435633,1756197048924,-3617.4837483,0.0002421,2]
[381435634,1756197048934,-600.0,0.00024356,2]
[381435635,1756197048943,-152.0,0.00024384,2]
[381435636,1756197048953,-319.0,0.0002439,2]
[381435637,1756197048963,-491.80451806,0.00024478,2]
[381435638,1756197048972,-159.91864871,0.0002455,15]
[381435639,1756197048981,-5510.0,0.000246,3]
[381435640,1756197048990,-584.64097721,0.0002465,2]
[381435641,1756197049000,-163.6217749,0.0002465,2]
[381435642,1756197049010,-1900.0,0.00024654,2]
[381435643,1756197049020,-151.0,0.00024658,7]
[381435644,1756197049029,-151.0,0.00024658,7]
[381435645,1756197049039,-47488.96923087,0.0002474,2]
[381435646,1756197049049,-620655.694212,0.000248,3]
[381435647,1756197049065,-1000.0,0.000248,2]
[381435648,1756197049074,-2500.0,0.000248,2]
[381435649,1756197049084,-160.0,0.000248,3]
[381435650,1756197049094,-151.0,0.000248,7]
[381435651,1756197049104,-153.865655,0.000248,7]
[381435652,1756197049115,-151.0,0.000248,7]
[381435653,1756197049124,-151.0,0.000248,7]
[381435654,1756197049134,-151.0,0.000248,7]
[381435655,1756197049144,-151.0,0.000248,7]
[381435656,1756197049154,-186.058642,0.000248,7]
[381435657,1756197049163,-151.0,0.000248,7]
[381435658,1756197049173,-151.0,0.000248,7]
[381435659,1756197049183,-151.0,0.000248,7]
[381435660,1756197049193,-151.0,0.000248,7]
[381435661,1756197049203,-151.0,0.000248,7]
[381435662,1756197049212,-151.0,0.000248,7]
[381435663,1756197049223,-151.0,0.000248,7]
[381435664,1756197049232,-372.719028,0.000248,7]
[381435665,1756197049242,-372.719028,0.000248,7]
[381435666,1756197049252,-151.0,0.000248,7]
[381435667,1756197049262,-151.0,0.000248,7]
[381435668,1756197049271,-372.719028,0.000248,7]
[381435669,1756197049281,-151.0,0.000248,7]
[381435670,1756197049290,-372.719028,0.000248,7]
[381435671,1756197049300,-151.0,0.000248,7]
[381435672,1756197049312,-619.559227,0.000248,7]
[381435673,1756197049668,-151.0,0.000248,7]
[381435674,1756197049701,-151.0,0.000248,7]
[381435675,1756197049710,-619.559227,0.000248,7]
[381435676,1756197049720,-151.0,0.000248,7]
[381435677,1756197049729,-179.732616,0.000248,7]
[381435678,1756197049739,-619.559227,0.000248,7]
[381435679,1756197049748,-151.0,0.000248,7]
[381435680,1756197049759,-619.559227,0.000248,7]
[381435681,1756197049768,-151.0,0.000248,7]
[381435682,1756197049778,-255.35,0.0002482,2]
[381435683,1756197049788,-150.0,0.00024868,2]
[381435684,1756197049799,-1000.0,0.00024889,2]
[381435685,1756197049811,-844.63891918,0.000249,7]
[381435686,1756197049821,-192.86815548,0.000249,2]
[381435687,1756197049830,-35145.8,0.000249,2]
[381435688,1756197049840,-605268.497704,0.000249,3]
[381435689,1756197049850,-151.0,0.000249,7]
[381435690,1756197049860,-151.0,0.000249,7]
[381435691,1756197049869,-33131.04418592,0.000249,2]
[381435692,1756197049878,-239.474554,0.000249,7]
[381435693,1756197049887,-239.474554,0.000249,7]
[381435694,1756197049898,-239.474554,0.000249,7]
[381435695,1756197049907,-239.474554,0.000249,7]
[381435696,1756197049918,-179.573856,0.000249,7]
[381435697,1756197049927,-151.0,0.000249,7]
[381435698,1756197049937,-179.573856,0.000249,7]
[381435699,1756197049946,-151.0,0.000249,7]
[381435700,1756197049956,-460.016274,0.000249,7]
[381435701,1756197049966,-151.0,0.000249,7]
[381435702,1756197049975,-179.573856,0.000249,7]
[381435703,1756197049985,-151.0,0.000249,7]
[381435704,1756197049994,-184.69995,0.000249,7]
[381435705,1756197050004,-460.016274,0.000249,7]
[381435706,1756197050013,-151.0,0.000249,7]
[381435707,1756197050023,-179.573856,0.000249,7]
[381435708,1756197050032,-460.016274,0.000249,7]
[381435709,1756197050041,-151.0,0.000249,7]
[381435710,1756197050050,-151.0,0.000249,7]
[381435711,1756197050062,-460.016274,0.000249,7]
[381435712,1756197050071,-151.0,0.000249,7]
[381435713,1756197050081,-151.0,0.000249,7]
[381435714,1756197050091,-152.777346,0.000249,7]
[381435715,1756197050100,-152.489207,0.000249,7]
[381435716,1756197050110,-1774.242245,0.000249,7]
[381435717,1756197050119,-151.0,0.000249,7]
[381435718,1756197050128,-151.0,0.000249,7]
[381435719,1756197050138,-304.14737,0.000249,7]
[381435720,1756197050147,-1774.242245,0.000249,7]
[381435721,1756197050156,-151.0,0.000249,7]
[381435722,1756197050166,-151.0,0.000249,7]
[381435723,1756197050176,-1774.242245,0.000249,7]
[381435724,1756197050186,-304.14737,0.000249,7]
[381435725,1756197050195,-323.877022,0.000249,7]
[381435726,1756197050206,-151.0,0.000249,7]
[381435727,1756197050217,-304.14737,0.000249,7]
[381435728,1756197050227,-187.5147,0.000249,7]
[381435729,1756197050236,-1774.242245,0.000249,7]
[381435730,1756197050246,-323.877022,0.000249,7]
[381435731,1756197050255,-304.14737,0.000249,7]
[381435732,1756197050264,-187.5147,0.000249,7]
[381435733,1756197050274,-323.877022,0.000249,7]
[381435734,1756197050283,-323.877022,0.000249,7]
[381435735,1756197050292,-151.453786,0.000249,7]
[381435736,1756197050302,-293.876933,0.000249,7]
[381435737,1756197050313,-187.5147,0.000249,7]
[381435738,1756197050324,-293.876933,0.000249,7]
[381435739,1756197050334,-187.5147,0.000249,7]
[381435740,1756197050343,-293.876933,0.000249,7]
[381435741,1756197050353,-293.876933,0.000249,7]
[381435742,1756197050363,-151.0,0.000249,7]
[381435743,1756197050372,-194.557096,0.000249,7]
[381435744,1756197050382,-194.557096,0.000249,7]
[381435745,1756197050391,-194.557096,0.000249,7]
[381435746,1756197050400,-194.557096,0.000249,7]
[381435747,1756197050411,-600.0,0.00024904,2]
[381435748,1756197050420,-153.0,0.00024932,2]
[381435749,1756197050430,-150.0,0.00024942,2]
[381435750,1756197050439,-1000.0,0.00024999,2]
[381435751,1756197050448,-399.48,0.00025,7]
[381435752,1756197050459,-631.15,0.00025,7]
[381435753,1756197050468,-1745.36497707,0.00025,2]
[381435754,1756197050478,-4688.70204753,0.00025,2]
[381435755,1756197050488,-274.79653458,0.00025,2]
[381435756,1756197050498,-360.0,0.00025,2]
[381435757,1756197050507,-2976.49883909,0.00025,2]
[381435758,1756197050518,-3162.45223389,0.00025,2]
[381435759,1756197050528,-14029.83006799,0.00025,2]
[381435760,1756197050538,-1264.81236431,0.00025,10]
[381435761,1756197050549,-15002.03245139,0.00025,2]
[381435762,1756197050560,-1040.71608703,0.00025,2]
[381435763,1756197050569,-163.57704232,0.00025,2]
[381435764,1756197050581,-300.0,0.00025,2]
[381435765,1756197050590,-344.2,0.00025,2]
[381435766,1756197050601,-300.0,0.00025,2]
[381435767,1756197050611,-844.63891918,0.00025,3]
[381435768,1756197050621,-204.79063044,0.00025,30]
[381435769,1756197050630,-3231.33,0.00025,7]
[381435770,1756197050640,-4000.0,0.00025,4]
[381435771,1756197050651,-161.0,0.00025,7]
[381435772,1756197050660,-197.37726797,0.00025003,7]
[381435773,1756197050670,-15000.0,0.0002501,2]
[381435774,1756197050679,-150.0,0.00025016,2]
[381435775,1756197050688,-1000.0,0.00025022,2]
[381435776,1756197050697,-346.92554585,0.00025058,2]
[381435777,1756197050707,-277.35679052,0.00025058,2]
[381435778,1756197050716,-150.0,0.0002509,2]
[381435779,1756197050725,-2047.31,0.000251,7]
[381435780,1756197050735,-42977.78,0.000251,7]
[381435781,1756197050745,-3177.0,0.00025107,2]
[381435782,1756197050754,-150.0,0.00025164,2]
[381435783,1756197050764,-715.37,0.000252,7]
[381435784,1756197050773,-5510.0,0.000252,5]
[381435785,1756197050785,-1600.0,0.00025202,2]
[381435786,1756197050794,-3000.0,0.00025202,2]
[381435787,1756197050805,-16988.1036592,0.00025203,7]
[381435788,1756197050815,-13938.4648646,0.00025203,7]
[381435789,1756197050824,-319.0,0.0002521,2]
[381435790,1756197050833,-150.0,0.00025237,2]
[381435791,1756197050843,-150.0,0.00025311,2]
[381435792,1756197050852,-150.0,0.00025385,2]
[381435793,1756197050862,-600.0,0.00025452,2]
[381435794,1756197050872,-150.0,0.00025459,2]
[381435795,1756197050881,-154.0,0.00025479,2]
[381435796,1756197050892,-2000.0,0.00025528,2]
[381435797,1756197050902,-599.0,0.00025529,2]
[381435798,1756197050913,-1658.0,0.00025529,2]
[381435799,1756197050922,-566.0,0.00025529,2]
[381435800,1756197050932,-1298.0,0.00025529,2]
[381435801,1756197050941,-1173.0,0.00025529,2]
[381435802,1756197050951,-783.293,0.00025529,2]
[381435803,1756197050960,-6146.0,0.00025529,2]
[381435804,1756197050970,-2031.0,0.00025529,2]
[381435805,1756197050979,-1256.0,0.00025529,2]
[381435806,1756197050991,-926.0,0.00025529,2]
[381435807,1756197051000,-4155.0,0.00025529,2]
[381435808,1756197051010,-491.80451806,0.00025579,2]
[381435809,1756197051020,-212.18043798,0.00025597,3]
[381435810,1756197051029,-33131.04418591,0.00025597,3]
[381435811,1756197051039,-458.7662338,0.000256,3]
[381435812,1756197051049,-185.71,0.00025676,2]
[381435813,1756197051061,-151.0,0.000257,2]
[381435814,1756197051070,-12000.0,0.000257,7]
[381435815,1756197051080,-151.0,0.000257,7]
[381435816,1756197051089,-12000.0,0.000257,7]
[381435817,1756197051099,-151.0,0.000257,7]
[381435818,1756197051109,-177.613696,0.000257,7]
[381435819,1756197051119,-12000.0,0.000257,7]
[381435820,1756197051128,-177.613696,0.000257,7]
[381435821,1756197051138,-12000.0,0.000257,7]
[381435822,1756197051148,-177.613696,0.000257,7]
[381435823,1756197051157,-151.0,0.000257,7]
[381435824,1756197051167,-177.613696,0.000257,7]
[381435825,1756197051177,-151.0,0.000257,7]
[381435826,1756197051187,-656.785412,0.000257,7]
[381435827,1756197051197,-656.785412,0.000257,7]
[381435828,1756197051207,-612.369938,0.000257,7]
[381435829,1756197051217,-155.658208,0.000257,7]
[381435830,1756197051227,-656.785412,0.000257,7]
[381435831,1756197051238,-612.369938,0.000257,7]
[381435832,1756197051248,-155.658208,0.000257,7]
[381435833,1756197051257,-151.0,0.000257,7]
[381435834,1756197051267,-656.785412,0.000257,7]
[381435835,1756197051277,-155.658208,0.000257,7]
[381435836,1756197051286,-612.369938,0.000257,7]
[381435837,1756197051296,-151.0,0.000257,7]
[381435838,1756197051307,-155.658208,0.000257,7]
[381435839,1756197051316,-612.369938,0.000257,7]
[381435840,1756197051327,-167.333849,0.000257,7]
[381435841,1756197051336,-151.0,0.000257,7]
[381435842,1756197051346,-151.0,0.000257,7]
[381435843,1756197051356,-151.0,0.000257,7]
[381435844,1756197051366,-151.0,0.000257,7]
[381435845,1756197051375,-151.0,0.000257,7]
[381435846,1756197051385,-151.0,0.000257,7]
[381435847,1756197051395,-151.0,0.000257,7]
[381435848,1756197051405,-250.404867,0.000257,7]
[381435849,1756197051415,-1900.0,0.0002575,2]
[381435850,1756197051425,-503.0,0.00025767,2]
[381435851,1756197051435,-1000.0,0.00025848,2]
[381435852,1756197051445,-162.0,0.0002589,7]
[381435853,1756197051455,-587.10090826,0.0002599,2]
[381435854,1756197051464,-900.0,0.00026,27]
[381435855,1756197051474,-399.48,0.00026,7]
[381435856,1756197051484,-1057.85,0.00026,2]
[381435857,1756197051493,-300.0,0.00026,2]
[381435858,1756197051503,-631.15,0.00026,7]
[381435859,1756197051512,-4421.34490359,0.00026,2]
[381435860,1756197051521,-4433.65,0.00026,2]
[381435861,1756197051535,-2668.11923443,0.00026,2]
[381435862,1756197051545,-211.59058449,0.00026,2]
[381435863,1756197051555,-300.0,0.00026,2]
[381435864,1756197051565,-3231.33,0.00026,7]
[381435865,1756197051576,-4000.0,0.00026,4]
[381435866,1756197051588,-600.0,0.00026,2]
[381435867,1756197051599,-296.47059111,0.00026027,2]
[381435868,1756197051608,-213.0,0.0002603,2]